fUST/lending_fUST_20250820
["ID","MTS","AMOUNT","RATE_DAILY","PERIOD"]
[380329031,1755685839181,-500.0,0.00021569,2]
[380329032,1755685839191,-500.0,0.00021569,2]
[380329033,1755685839200,-500.0,0.00021569,2]
[380329034,1755685839209,-500.0,0.00021569,2]
[380329035,1755685839219,-500.0,0.00021569,2]
[380329036,1755685839228,-500.0,0.00021569,2]
[380329037,1755685839237,-500.0,0.00021569,2]
[380329038,1755685839247,-500.0,0.00021569,2]
[380329039,1755685839256,-500.0,0.00021569,2]
[380329040,1755685839266,-500.0,0.00021569,2]
[380329041,1755685839275,-500.0,0.00021569,2]
[380329042,1755685839284,-500.0,0.00021569,2]
[380329043,1755685839294,-500.0,0.00021569,2]
[380329044,1755685839304,-500.0,0.00021569,2]
[380329045,1755685839314,-317.24846275,0.00021569,2]
[380329046,1755685839323,-587.29829793,0.00021569,2]
[380329047,1755685839333,-500.0,0.00021569,2]
[380329048,1755685839343,-500.0,0.00021569,2]
[380329049,1755685839352,-500.0,0.00021569,2]
[380329050,1755685839362,-500.0,0.00021569,2]
[380329051,1755685839372,-500.0,0.00021569,2]
[380329052,1755685839381,-500.0,0.00021569,2]
[380329053,1755685839391,-500.0,0.00021569,2]
[380329054,1755685839402,-500.0,0.00021569,2]
[380329055,1755685839411,-500.0,0.00021569,2]
[380329056,1755685839421,-500.0,0.00021569,2]
[380329057,1755685839431,-500.0,0.00021569,2]
[380329058,1755685839440,-500.0,0.00021569,2]
[380329059,1755685839450,-500.0,0.00021569,2]
[380329060,1755685839460,-500.0,0.00021569,2]
[380329061,1755685839470,-500.0,0.00021569,2]
[380329062,1755685839479,-500.0,0.00021569,2]
[380329063,1755685839489,-500.0,0.00021569,2]
[380329064,1755685839499,-500.0,0.00021569,2]
[380329065,1755685839509,-385.5122703,0.00021569,2]
[380329066,1755685839518,-500.0,0.00021569,2]
[380329067,1755685839528,-500.0,0.00021569,2]
[380329068,1755685839537,-500.0,0.00021569,2]
[380329069,1755685839547,-414.01434617,0.00021569,2]
[380329070,1755685839556,-500.0,0.00021569,2]
[380329071,1755685839566,-500.0,0.00021569,2]
[380329072,1755685839576,-500.0,0.00021569,2]
[380329073,1755685839586,-500.0,0.00021569,2]
[380329074,1755685839595,-500.0,0.00021569,2]
[380329075,1755685839605,-500.0,0.00021569,2]
[380329076,1755685839614,-500.0,0.00021569,2]
[380329077,1755685839623,-398.37815282,0.00021569,2]
[380329078,1755685839633,-500.0,0.00021569,2]
[380329079,1755685839643,-500.0,0.00021569,2]
[380329080,1755685839653,-500.0,0.00021569,2]
[380329081,1755685839663,-500.0,0.00021569,2]
[380329082,1755685839672,-500.0,0.00021569,2]
[380329083,1755685839682,-500.0,0.00021569,2]
[380329084,1755685839692,-500.0,0.00021569,2]
[380329085,1755685839702,-500.0,0.00021569,2]
[380329086,1755685839712,-500.0,0.00021569,2]
[380329087,1755685839723,-500.0,0.00021569,2]
[380329088,1755685839733,-500.0,0.00021569,2]
[380329089,1755685839742,-500.0,0.00021569,2]
[380329090,1755685839754,-500.0,0.00021569,2]
[380329091,1755685839771,-500.0,0.00021569,2]
[380329092,1755685839781,-500.0,0.00021569,2]
[380329093,1755685839903,-500.0,0.00021569,2]
[380329095,1755685839918,-500.0,0.00021569,2]
[380329096,1755685839928,-500.0,0.00021569,2]
[380329097,1755685839938,-500.0,0.00021569,2]
[380329098,1755685839947,-500.0,0.00021569,2]
[380329099,1755685839957,-500.0,0.00021569,2]
[380329100,1755685839966,-500.0,0.00021569,2]
[380329101,1755685839976,-4267.83218806,0.0002157,2]
[380329102,1755685839985,-1000.0,0.0002157,2]
[380329103,1755685839995,-240.33,0.0002157,2]
[380329104,1755685840005,-151.0,0.0002157,2]
[380329105,1755685840014,-151.0,0.0002157,2]
[380329106,1755685840024,-153.385985,0.0002157,2]
[380329109,1755685840034,-239.95785,0.0002157,2]
[380329110,1755685840046,-151.0,0.0002157,2]
[380329111,1755685840061,-151.0,0.0002157,2]
[380329112,1755685840071,-500.0,0.0002157,2]
[380329113,1755685840080,-370000.0,0.00021571,2]
[380329114,1755685840090,-151.0,0.00021571,2]
[380329115,1755685840100,-151.0,0.00021571,2]
[380329116,1755685840110,-151.0,0.00021571,2]
[380329117,1755685840119,-151.0,0.00021571,2]
[380329118,1755685840129,-151.0,0.00021571,2]
[380329120,1755685840139,-151.0,0.00021571,2]
[380329121,1755685840156,-151.780187,0.00021571,2]
[380329123,1755685840174,-151.0,0.00021571,2]
[380329124,1755685840184,-151.0,0.00021571,2]
[380329125,1755685840193,-151.0,0.00021571,2]
[380329127,1755685840203,-151.0,0.00021571,2]
[380329129,1755685840212,-151.0,0.00021571,2]
[380329130,1755685840222,-199.0,0.00021571,2]
[380329131,1755685840232,-151.0,0.00021571,2]
[380329132,1755685840241,-151.0,0.00021571,2]
[380329133,1755685840251,-151.0,0.00021571,2]
[380329134,1755685840261,-151.0,0.00021571,2]
[380329135,1755685840271,-151.0,0.00021571,2]
[380329136,1755685840280,-181.821142,0.00021571,2]
[380329137,1755685840290,-157.413511,0.00021571,2]
[380329138,1755685840300,-151.0,0.00021571,2]
[380329139,1755685840309,-500.0,0.00021573,2]
[380329140,1755685840319,-500.0,0.00021573,2]
[380329141,1755685840329,-500.0,0.00021573,2]
[380329142,1755685840338,-1762.0,0.00021671,2]
[380329143,1755685840347,-1762.0,0.00021671,2]
[380329144,1755685840357,-389.07053358,0.00021671,2]
[380329145,1755685840366,-5260.93634662,0.00021771,2]
[380329146,1755685840375,-2602.75010619,0.00021792,2]
[380329147,1755685840385,-480.0,0.0002182,2]
[380329148,1755685840394,-480.0,0.00021821,2]
[380329149,1755685840404,-480.0,0.00021821,2]
[380329150,1755685840414,-480.0,0.00021821,2]
[380329151,1755685840424,-500.0,0.00021844,2]
[380329152,1755685840434,-213.288579,0.00021918,2]
[380329153,1755685840443,-213.288579,0.00021918,2]
[380329154,1755685840452,-213.288579,0.00021918,2]
[380329155,1755685840462,-213.288579,0.00021918,2]
[380329156,1755685840471,-5538.12,0.00022,7]
[380329157,1755685840480,-479.43,0.00022094,2]
[380329158,1755685840489,-480.0,0.00022095,2]
[380329159,1755685840498,-185.41,0.00022095,2]
[380329160,1755685840507,-480.0,0.00022095,2]
[380329161,1755685840515,-300.0,0.00022103,20]
[380329162,1755685840525,-300.0,0.00022103,20]
[380329163,1755685840534,-300.0,0.00022103,20]
[380329164,1755685840543,-1000.0,0.00022121,2]
[380329165,1755685840552,-560.30109212,0.00022121,2]
[380329166,1755685840562,-160.0,0.00022167,2]
[380329167,1755685840571,-215.82729805,0.00022167,2]
[380329168,1755685840580,-417.15472785,0.00022167,2]
[380329169,1755685840589,-157.57769085,0.000222,69]
[380329170,1755685840599,-2947.06762545,0.00022212,2]
[380329171,1755685840608,-151.0,0.00022251,2]
[380329172,1755685840617,-243.89168695,0.00022251,2]
[380329173,1755685840626,-268.72796885,0.00022251,2]
[380329174,1755685840635,-203.82073721,0.00022251,2]
[380329175,1755685840644,-151.0,0.00022251,2]
[380329176,1755685840654,-1595.89112944,0.00022311,2]
[380329177,1755685840663,-157.57769082,0.00022317,69]
[380329178,1755685840672,-480.0,0.00022369,2]
[380329179,1755685840682,-480.0,0.00022369,2]
[380329180,1755685840691,-332.12,0.00022643,2]
[380329181,1755685840700,-420.0,0.00022667,2]
[380329182,1755685840710,-500.0,0.00022668,2]
[380329183,1755685840719,-2602.75010619,0.00022686,2]
[380329184,1755685840729,-151.0,0.00022706,7]
[380329185,1755685840738,-151.0,0.00022706,7]
[380329186,1755685840748,-151.0,0.00022706,7]
[380329187,1755685840760,-151.0,0.00022706,7]
[380329188,1755685840770,-151.0,0.00022706,7]
[380329189,1755685840780,-213.288579,0.00022706,7]
[380329190,1755685840789,-213.288579,0.00022706,7]
[380329191,1755685840799,-213.288579,0.00022706,7]
[380329192,1755685840808,-213.288579,0.00022706,7]
[380329193,1755685840818,-151.0,0.00022706,7]
[380329194,1755685840828,-252.380998,0.00022706,7]
[380329195,1755685840839,-151.0,0.00022706,7]
[380329196,1755685840848,-5260.93634662,0.00022706,2]
[380329197,1755685840858,-160.0,0.00022893,2]
[380329198,1755685840868,-528.77847288,0.00022893,2]
[380329199,1755685840877,-844.05985274,0.00022893,2]
[380329200,1755685840887,-216.9170744,0.00022893,2]
[380329201,1755685840896,-160.0,0.00022893,2]
[380329202,1755685840906,-232.24568399,0.00022893,2]
[380329203,1755685840915,-375.94359665,0.00022893,2]
[380329204,1755685840925,-160.0,0.00022893,2]
[380329205,1755685840935,-151.0,0.00022894,7]
[380329206,1755685840944,-20374.86981451,0.000229,2]
[380329207,1755685840954,-151.0,0.000229,7]
[380329208,1755685840963,-151.0,0.000229,7]
[380329209,1755685840972,-151.0,0.000229,7]
[380329210,1755685840981,-151.0,0.000229,7]
[380329211,1755685840990,-151.0,0.000229,7]
[380329212,1755685841000,-151.0,0.000229,7]
[380329213,1755685841010,-151.0,0.000229,7]
[380329214,1755685841019,-293.95721229,0.000229,2]
[380329215,1755685841028,-500.0,0.00022909,2]
[380329216,1755685841037,-1000.0040604,0.00023,2]
[380329217,1755685841047,-3600.30639534,0.00023,2]
[380329218,1755685841056,-160.0,0.00023,2]
[380329219,1755685841065,-1595.89112944,0.00023152,2]
[380329220,1755685841074,-300.0,0.00023357,20]
[380329221,1755685841084,-158.7577131,0.00023357,20]
[380329222,1755685841097,-151.0,0.00023357,20]
[380329223,1755685841106,-151.0,0.00023357,20]
[380329224,1755685841117,-245.5775819,0.00023357,20]
[380329225,1755685841127,-151.55192868,0.00023357,20]
[380329226,1755685841138,-151.0,0.00023357,20]
[380329227,1755685841148,-151.0,0.00023357,20]
[380329228,1755685841159,-151.0,0.00023357,20]
[380329229,1755685841168,-151.0,0.00023357,20]
[380329230,1755685841178,-151.25308997,0.00023357,20]
[380329231,1755685841187,-151.31325789,0.00023357,20]
[380329232,1755685841196,-151.0049699,0.00023357,20]
[380329233,1755685841206,-151.13771166,0.00023357,20]
[380329234,1755685841216,-151.0,0.00023357,7]
[380329235,1755685841225,-247.62232,0.00023357,7]
[380329236,1755685841234,-151.0,0.00023357,7]
[380329237,1755685841244,-213.288579,0.00023357,7]
[380329238,1755685841253,-213.288579,0.00023357,7]
[380329239,1755685841263,-213.288579,0.00023357,7]
[380329240,1755685841272,-213.288579,0.00023357,7]
[380329241,1755685841282,-417.15472785,0.00023357,7]
[380329242,1755685841291,-12687.94051737,0.00023357,7]
[380329243,1755685841301,-151.0,0.00023357,7]
[380329244,1755685841316,-160.0,0.00023357,7]
[380329245,1755685841326,-137943.67562773,0.00023494,2]
[380329246,1755685841335,-151.496177,0.00023494,7]
[380329247,1755685841344,-151.0,0.00023494,7]
[380329248,1755685841353,-151.0,0.00023494,7]
[380329249,1755685841363,-151.0,0.00023494,7]
[380329250,1755685841372,-151.0,0.00023494,7]
[380329251,1755685841381,-151.0,0.00023494,7]
[380329252,1755685841390,-151.0,0.00023494,7]
[380329253,1755685841401,-167.845277,0.00023494,7]
[380329254,1755685841410,-264.994186,0.00023494,7]
[380329255,1755685841419,-528.77847288,0.00023494,7]
[380329256,1755685841429,-375.94359665,0.00023494,7]
[380329257,1755685841438,-151.0,0.00023494,7]
[380329258,1755685841448,-151.0,0.00023494,7]
[380329259,1755685841459,-215.82729805,0.00023494,7]
[380329260,1755685841468,-213.288579,0.00023494,7]
[380329261,1755685841478,-213.288579,0.00023494,7]
[380329262,1755685841487,-213.288579,0.00023494,7]
[380329263,1755685841497,-213.288579,0.00023494,7]
[380329264,1755685841506,-151.0,0.00023494,7]
[380329265,1755685841515,-1000.0,0.000235,2]
[380329266,1755685841524,-973.0,0.00023553,2]
[380329267,1755685841534,-160.0,0.00023553,2]
[380329268,1755685841545,-500.0,0.00023573,2]
[380329269,1755685841555,-500.0,0.00023573,2]
[380329270,1755685841565,-500.0,0.00023573,2]
[380329271,1755685841579,-500.0,0.00023573,2]
[380329272,1755685841591,-500.0,0.00023573,2]
[380329273,1755685841600,-526.94486111,0.00023573,2]
[380329274,1755685841610,-500.0,0.00023573,2]
[380329275,1755685841621,-1629.08060969,0.00023598,2]
[380329276,1755685841631,-500.0,0.00023598,2]
[380329277,1755685841640,-1629.08060969,0.00023598,2]
[380329278,1755685841650,-1629.08060969,0.00023598,2]
[380329279,1755685841659,-1629.08060969,0.00023598,2]
[380329280,1755685841668,-1629.08060969,0.00023598,2]
[380329281,1755685841678,-373.0781741,0.00023598,2]
[380329282,1755685841688,-1629.08060969,0.00023598,2]
[380329283,1755685841697,-1629.08060969,0.00023598,2]
[380329284,1755685841707,-1629.08060969,0.00023598,2]
[380329285,1755685841717,-1629.08060969,0.00023598,2]
[380329286,1755685841727,-1629.08060969,0.00023598,2]
[380329287,1755685841737,-1629.08060969,0.00023598,2]
[380329288,1755685841746,-1629.08060969,0.00023598,2]
[380329289,1755685841758,-1629.08060969,0.00023598,2]
[380329290,1755685841768,-1629.08060969,0.00023598,2]
[380329291,1755685841778,-1629.08060969,0.00023598,2]
[380329292,1755685841788,-1629.08060969,0.00023598,2]
[380329293,1755685841799,-1629.08060969,0.00023598,2]
[380329294,1755685841810,-1629.08060969,0.00023598,2]
[380329295,1755685841821,-151.0,0.00023599,7]
[380329296,1755685841832,-151.0,0.00023599,7]
[380329297,1755685841845,-151.0,0.00023599,7]
[380329298,1755685841855,-217.682147,0.00023599,7]
[380329299,1755685841867,-213.288579,0.00023599,7]
[380329300,1755685841876,-213.288579,0.00023599,7]
[380329301,1755685841886,-213.288579,0.00023599,7]
[380329302,1755685841896,-213.28858672,0.00023599,7]
[380329303,1755685841906,-151.0,0.00023599,7]
[380329304,1755685841916,-131524.54537638,0.000236,2]
[380329305,1755685841927,-1234.87,0.000236,7]
[380329306,1755685841937,-256.892,0.000236,7]
[380329307,1755685841947,-151.0,0.000236,7]
[380329308,1755685841957,-22716.32507345,0.000236,2]
[380329309,1755685841967,-151.0,0.00023631,20]
[380329310,1755685841976,-151.0,0.00023631,20]
[380329311,1755685841985,-257.13063666,0.00023631,20]
[380329312,1755685841995,-151.89224758,0.00023631,20]
[380329313,1755685842004,-5260.93634662,0.00023642,2]
[380329314,1755685842014,-1382.76072064,0.00023686,2]
[380329315,1755685842023,-13836.70866639,0.000237,7]
[380329316,1755685842038,-488.158628,0.000237,7]
[380329317,1755685842129,-199.0,0.0002066,2]
[380329318,1755685842139,-459.00119064,0.00020998,2]
[380329319,1755685842148,-79.91276564,0.00021561,10]
[380329320,1755685842160,-843.63590484,0.00021561,10]
[380329321,1755685842172,-30.03132952,0.00021561,10]
[380329322,1755685842182,-500.0,0.00022118,2]
[380329323,1755685842192,-500.0,0.00022392,2]
[380329324,1755685842204,-500.0,0.00022666,2]
[380329325,1755685842214,-160.0,0.00022893,2]
[380329326,1755685842224,-500.0,0.0002294,2]
[380329327,1755685842233,-500.0,0.00023214,2]
[380329328,1755685842242,-51.69429914,0.00023488,2]
[380329329,1755685842254,-448.30570086,0.00023488,2]
[380329330,1755685842263,-155.49270561,0.000237,7]
[380329331,1755685842273,-500.0,0.00023762,2]
[380329332,1755685842283,-163.71,0.000238,2]
[380329333,1755685842292,-450.0,0.000239,4]
[380329334,1755685842302,-150.0,0.000239,2]
[380329335,1755685842311,-1595.89112944,0.00023992,2]
[380329336,1755685842321,-241.69034967,0.00024,60]
[380329337,1755685842330,-160.0,0.00024,7]
[380329338,1755685842343,-160.0,0.00024,7]
[380329339,1755685842353,-844.05985274,0.00024,7]
[380329340,1755685842362,-216.9170744,0.00024,7]
[380329341,1755685842372,-232.24568399,0.00024,7]
[380329342,1755685842382,-160.0,0.00024,7]
[380329343,1755685842392,-500.0,0.00024036,2]
[380329344,1755685842402,-600.0,0.00024071,20]
[380329345,1755685842411,-5538.12,0.000241,7]
[380329346,1755685842421,-6396.53045832,0.000241,7]
[380329347,1755685842433,-1481.73085023,0.000241,7]
[380329350,1755685843460,-844.05985274,0.00022893,2]
[380329351,1755685843470,-390.408,0.00023553,2]
[380329352,1755685843479,-425.227,0.00023553,2]
[380329353,1755685843489,-452.6925114,0.00023579,2]
[380329354,1755685843556,-791.2784889,0.00023579,2]
[380329359,1755686029560,-362.0,0.000212,30]
[380329362,1755686193562,159.94117,0.00013699,2]
[380329367,1755687013403,192.38505589,0.000189,2]
[380329442,1755687035447,-529.75451512,0.00019776,2]
[380329443,1755687035499,-602.98752802,0.00019776,2]
[380329444,1755687035510,-265.31770726,0.00019776,2]
[380329445,1755687035521,-699.856,0.00019776,2]
[380329446,1755687035532,-578.13243782,0.00019776,2]
[380329453,1755687038538,-410.19,0.00019776,2]
[380329454,1755687038550,-620.37204178,0.00019776,2]
[380329455,1755687038559,-1200.0,0.00019899,2]
[380329456,1755687038568,-1169.59454622,0.000199,2]
[380329457,1755687038591,-4967.75678501,0.000199,2]
[380329458,1755687038600,-300.0,0.00019943,2]
[380329459,1755687038609,-300.0,0.00019943,2]
[380329460,1755687038619,-172.0,0.00019943,2]
[380329461,1755687038629,-1200.0,0.00019944,2]
[380329462,1755687038639,-200.5240547,0.00019945,2]
[380329463,1755687038648,-160.0,0.0002,3]
[380329464,1755687038657,-159.649812,0.00020087,2]
[380329465,1755687038666,-6137.35133109,0.00020835,2]
[380329466,1755687038675,-3001.0053608,0.00020873,2]
[380329467,1755687038683,-446.12,0.00020896,2]
[380329468,1755687038693,-480.0,0.00020896,2]
[380329469,1755687038702,-480.0,0.00020896,2]
[380329470,1755687038713,-480.0,0.00020896,2]
[380329471,1755687038722,-480.0,0.00020896,2]
[380329473,1755687038731,-480.0,0.00020896,2]
[380329475,1755687038743,-480.0,0.00020896,2]
[380329476,1755687038754,-159.94117,0.00020951,2]
[380329477,1755687038763,-33349.70252147,0.00020951,2]
[380329478,1755687038771,-461.15880936,0.00020996,2]
[380329479,1755687038781,-480.0,0.00020996,2]
[380329480,1755687038790,-480.0,0.00020996,2]
[380329481,1755687038800,-486.58,0.00020997,2]
[380329482,1755687038809,-480.0,0.00020997,2]
[380329483,1755687038818,-240.03954782,0.00020997,2]
[380329484,1755687038827,-480.0,0.00020997,2]
[380329485,1755687038837,-537.85,0.00020997,2]
[380329486,1755687038846,-500.72750371,0.00020997,2]
[380329487,1755687038855,-480.0,0.00020997,2]
[380329488,1755687038865,-480.0,0.00020997,2]
[380329489,1755687038875,-480.0,0.00020997,2]
[380329490,1755687038885,-480.0,0.00020997,2]
[380329491,1755687038895,-480.0,0.00020997,2]
[380329492,1755687038904,-480.0,0.00020997,2]
[380329493,1755687038914,-480.0,0.00020997,2]
[380329494,1755687038924,-480.0,0.00020997,2]
[380329495,1755687038933,-480.0,0.00020997,2]
[380329496,1755687038942,-480.0,0.00020998,2]
[380329497,1755687038953,-483.08058184,0.00020998,2]
[380329498,1755687038962,-480.0,0.00020998,2]
[380329499,1755687038972,-480.0,0.00020998,2]
[380329500,1755687038981,-484.20888487,0.00020998,2]
[380329501,1755687038993,-480.0,0.00020998,2]
[380329502,1755687039002,-480.0,0.00020998,2]
[380329503,1755687039012,-480.0,0.00020998,2]
[380329504,1755687039021,-480.0,0.00020998,2]
[380329505,1755687039031,-483.82577504,0.00020998,2]
[380329506,1755687039041,-480.0,0.00020998,2]
[380329507,1755687039050,-480.0,0.00020998,2]
[380329508,1755687039059,-480.0,0.00020998,2]
[380329509,1755687039068,-480.0,0.00020998,2]
[380329510,1755687039078,-480.0,0.00020998,2]
[380329511,1755687039087,-480.0,0.00020998,2]
[380329512,1755687039096,-458.03379057,0.00020998,2]
[380329513,1755687039106,-480.0,0.00020998,2]
[380329514,1755687039115,-480.0,0.00020998,2]
[380329515,1755687039124,-480.0,0.00020998,2]
[380329516,1755687039134,-500.0,0.00020998,2]
[380329517,1755687039143,-480.0,0.00020998,2]
[380329518,1755687039153,-480.0,0.00020998,2]
[380329519,1755687039163,-483.94343525,0.00020998,2]
[380329520,1755687039172,-480.0,0.00020998,2]
[380329521,1755687039184,-480.0,0.00020998,2]
[380329522,1755687039193,-480.0,0.00020998,2]
[380329523,1755687039203,-480.0,0.00020998,2]
[380329524,1755687039211,-480.0,0.00020998,2]
[380329525,1755687039221,-480.0,0.00020998,2]
[380329526,1755687039231,-304.66639896,0.00020998,2]
[380329527,1755687039242,-477.74764358,0.00020998,2]
[380329528,1755687039251,-480.0,0.00020998,2]
[380329529,1755687039262,-480.0,0.00020998,2]
[380329530,1755687039271,-480.0,0.00020998,2]
[380329531,1755687039280,-480.0,0.00020998,2]
[380329532,1755687039289,-480.0,0.00020998,2]
[380329533,1755687039298,-480.0,0.00020998,2]
[380329534,1755687039307,-490.13724789,0.00020998,2]
[380329535,1755687039316,-175.08380057,0.00020998,2]
[380329536,1755687039325,-235.35851952,0.00020998,2]
[380329537,1755687039336,-480.0,0.00020998,2]
[380329538,1755687039345,-208.443088,0.00020998,10]
[380329539,1755687039354,-480.0,0.0002117,2]
[380329540,1755687039364,-480.0,0.0002117,2]
[380329541,1755687039374,-480.0,0.0002117,2]
[380329542,1755687039383,-480.0,0.0002117,2]
[380329543,1755687039392,-480.0,0.0002117,2]
[380329544,1755687039402,-480.0,0.0002117,2]
[380329545,1755687039411,-166.77847288,0.000212,30]
[380329546,1755687039420,-300.0,0.00021251,20]
[380329547,1755687039429,-300.0,0.00021251,20]
[380329548,1755687039438,-300.0,0.00021251,20]
[380329549,1755687039447,-300.0,0.00021251,20]
[380329550,1755687039457,-300.0,0.00021251,20]
[380329551,1755687039466,-300.0,0.00021251,20]
[380329552,1755687039476,-300.0,0.00021251,20]
[380329553,1755687039488,-300.0,0.00021251,20]
[380329554,1755687039497,-300.0,0.00021251,20]
[380329555,1755687039507,-300.0,0.00021251,20]
[380329556,1755687039517,-300.0,0.00021251,20]
[380329557,1755687039526,-300.0,0.00021251,20]
[380329558,1755687039536,-300.0,0.00021251,20]
[380329559,1755687039545,-300.0,0.00021251,20]
[380329560,1755687039554,-300.0,0.00021251,20]
[380329561,1755687039564,-300.0,0.00021251,20]
[380329562,1755687039573,-300.0,0.00021251,20]
[380329563,1755687039583,-1903.11,0.00021261,10]
[380329564,1755687039592,-1585.93,0.00021261,10]
[380329565,1755687039602,-480.0,0.0002127,2]
[380329566,1755687039611,-355.30030621,0.0002127,2]
[380329567,1755687039620,-480.0,0.00021271,2]
[380329568,1755687039630,-486.46,0.00021271,2]
[380329569,1755687039639,-537.85,0.00021271,2]
[380329570,1755687039649,-480.0,0.00021271,2]
[380329571,1755687039658,-480.0,0.00021271,2]
[380329572,1755687039668,-480.0,0.00021271,2]
[380329573,1755687039677,-576.92,0.00021271,2]
[380329574,1755687039686,-480.0,0.00021271,2]
[380329575,1755687039695,-480.0,0.00021271,2]
[380329576,1755687039705,-480.0,0.00021271,2]
[380329577,1755687039714,-480.0,0.00021271,2]
[380329578,1755687039723,-4965.35252873,0.0002137,3]
[380329579,1755687039734,-1968.74397493,0.00021373,2]
[380329580,1755687039744,-1353.46870376,0.00021373,2]
[380329581,1755687039753,-300.0,0.00021415,20]
[380329582,1755687039762,-300.0,0.00021415,20]
[380329583,1755687039772,-300.0,0.00021415,20]
[380329584,1755687039782,-300.0,0.00021417,20]
[380329585,1755687039791,-300.0,0.00021417,20]
[380329586,1755687039801,-480.0,0.00021444,2]
[380329587,1755687039810,-480.0,0.00021444,2]
[380329588,1755687039819,-480.0,0.00021444,2]
[380329589,1755687039829,-193.48,0.00021457,3]
[380329590,1755687039838,-580.45,0.0002146,3]
[380329591,1755687039847,-500.0,0.00021465,2]
[380329592,1755687039856,-500.0,0.00021465,2]
[380329593,1755687039865,-380.82130462,0.00021465,2]
[380329594,1755687039875,-500.0,0.00021465,2]
[380329595,1755687039884,-180.47641172,0.00021465,2]
[380329596,1755687039893,-500.0,0.00021465,2]
[380329597,1755687039903,-500.0,0.00021465,2]
[380329598,1755687039912,-500.0,0.00021465,2]
[380329599,1755687039921,-500.0,0.00021465,2]
[380329600,1755687039930,-317.24846275,0.00021465,2]
[380329601,1755687039939,-500.0,0.00021465,2]
[380329602,1755687039949,-500.0,0.00021465,2]
[380329603,1755687039958,-500.0,0.00021465,2]
[380329604,1755687039968,-625.29128523,0.00021465,2]
[380329605,1755687039977,-587.29829793,0.00021465,2]
[380329606,1755687039988,-500.0,0.00021465,2]
[380329607,1755687039998,-161.7640123,0.00021465,2]
[380329608,1755687040007,-500.0,0.00021465,2]
[380329609,1755687040017,-500.0,0.00021465,2]
[380329610,1755687040026,-500.0,0.00021465,2]
[380329611,1755687040035,-500.0,0.00021465,2]
[380329612,1755687040045,-500.0,0.00021465,2]
[380329613,1755687040054,-500.0,0.00021465,2]
[380329614,1755687040064,-500.0,0.00021465,2]
[380329615,1755687040073,-500.0,0.00021465,2]
[380329616,1755687040083,-500.0,0.00021465,2]
[380329617,1755687040092,-500.0,0.00021465,2]
[380329618,1755687040101,-500.0,0.00021465,2]
[380329619,1755687040110,-500.0,0.00021465,2]
[380329620,1755687040120,-500.0,0.00021465,2]
[380329621,1755687040129,-500.0,0.00021465,2]
[380329622,1755687040139,-500.0,0.00021465,2]
[380329623,1755687040148,-500.0,0.00021465,2]
[380329624,1755687040157,-500.0,0.00021465,2]
[380329626,1755687040167,-500.0,0.00021465,2]
[380329627,1755687040176,-500.0,0.00021465,2]
[380329628,1755687040188,-385.5122703,0.00021465,2]
[380329629,1755687040198,-500.0,0.00021465,2]
[380329630,1755687040207,-500.0,0.00021465,2]
[380329631,1755687040217,-500.0,0.00021465,2]
[380329633,1755687040226,-500.0,0.00021465,2]